fUSD/lending_fUSD_20241216
["ID","MTS","AMOUNT","RATE_DAILY","PERIOD"]
[345517749,1734309051492,-535.63,0.00022499,3]
[345517750,1734309051502,-637.62,0.00022499,3]
[345517751,1734309051511,-535.63,0.00022499,3]
[345517752,1734309051521,-567.0,0.00022499,3]
[345517753,1734309051531,-567.0,0.00022499,3]
[345517754,1734309051541,-637.62,0.00022499,3]
[345517755,1734309051551,-535.63,0.00022499,3]
[345517756,1734309051560,-637.62,0.00022499,3]
[345517757,1734309051570,-567.0,0.00022499,3]
[345517758,1734309051580,-535.70570988,0.00022499,3]
[345517759,1734309051590,-637.62,0.00022499,3]
[345517760,1734309051601,-567.0,0.00022499,3]
[345517761,1734309051614,-637.62,0.00022499,3]
[345517762,1734309051624,-567.0,0.00022499,3]
[345517763,1734309051633,-567.0,0.00022499,3]
[345517764,1734309051643,-567.0,0.00022499,3]
[345517765,1734309051656,-637.62,0.00022499,3]
[345517766,1734309051665,-567.0,0.00022499,3]
[345517767,1734309051675,-637.62,0.00022499,3]
[345517768,1734309051684,-567.0,0.00022499,3]
[345517769,1734309051693,-637.62,0.00022499,3]
[345517770,1734309051704,-567.22,0.00022499,3]
[345517771,1734309051713,-637.62,0.00022499,3]
[345517772,1734309051727,-500.0,0.00022499,3]
[345517773,1734309051736,-637.62,0.00022499,3]
[345517774,1734309051746,-637.62,0.00022499,3]
[345517775,1734309051755,-500.0,0.00022499,3]
[345517776,1734309051764,-500.0,0.00022499,3]
[345517777,1734309051774,-637.62,0.00022499,3]
[345517778,1734309051784,-637.7,0.00022499,3]
[345517779,1734309051793,-500.0,0.00022499,3]
[345517780,1734309051802,-500.0,0.00022499,3]
[345517781,1734309051811,-528.5495972,0.00022499,3]
[345517782,1734309051822,-500.0,0.00022499,3]
[345517783,1734309051832,-500.0,0.00022499,3]
[345517784,1734309051842,-500.0,0.00022499,3]
[345517785,1734309051852,-500.0,0.00022499,3]
[345517786,1734309051862,-500.0,0.00022499,3]
[345517787,1734309051872,-165.44,0.00022499,3]
[345517788,1734309051881,-1494.39866,0.00022499,2]
[345517789,1734309051891,-500.0,0.00022499,3]
[345517790,1734309051901,-500.0,0.00022499,3]
[345517791,1734309051911,-500.0,0.00022499,3]
[345517792,1734309051921,-500.0,0.00022499,3]
[345517793,1734309051930,-500.0,0.00022499,3]
[345517794,1734309051940,-500.0,0.00022499,3]
[345517795,1734309051949,-500.0,0.00022499,3]
[345517796,1734309051959,-500.0,0.00022499,3]
[345517797,1734309051968,-500.0,0.00022499,3]
[345517798,1734309051985,-408.27,0.00022499,3]
[345517799,1734309051995,-650.74,0.00022499,3]
[345517800,1734309052004,-650.74,0.00022499,3]
[345517801,1734309052014,-650.74,0.00022499,3]
[345517802,1734309052024,-650.74,0.00022499,3]
[345517803,1734309052033,-650.74,0.00022499,3]
[345517804,1734309052043,-650.74,0.00022499,3]
[345517805,1734309052052,-650.74,0.00022499,3]
[345517806,1734309052064,-650.74,0.00022499,3]
[345517807,1734309052075,-650.74,0.00022499,3]
[345517808,1734309052085,-650.74,0.00022499,3]
[345517809,1734309052094,-650.74,0.00022499,3]
[345517810,1734309052105,-650.74,0.00022499,3]
[345517811,1734309052115,-500.0,0.00022499,3]
[345517812,1734309052126,-650.74,0.00022499,3]
[345517813,1734309052138,-500.0,0.00022499,3]
[345517814,1734309052147,-650.74,0.00022499,3]
[345517815,1734309052158,-500.0,0.00022499,3]
[345517816,1734309052167,-650.74,0.00022499,3]
[345517817,1734309052177,-500.0,0.00022499,3]
[345517818,1734309052187,-650.74,0.00022499,3]
[345517819,1734309052198,-500.0,0.00022499,3]
[345517820,1734309052208,-650.74,0.00022499,3]
[345517821,1734309052218,-500.0,0.00022499,3]
[345517822,1734309052238,-650.74,0.00022499,3]
[345517823,1734309052248,-500.0,0.00022499,3]
[345517824,1734309052258,-650.74,0.00022499,3]
[345517825,1734309052269,-500.0,0.00022499,3]
[345517826,1734309052279,-650.74,0.00022499,3]
[345517827,1734309052289,-500.0,0.00022499,3]
[345517828,1734309052299,-650.74,0.00022499,3]
[345517829,1734309052310,-650.74,0.00022499,3]
[345517830,1734309052320,-500.0,0.00022499,3]
[345517831,1734309052329,-650.95,0.00022499,3]
[345517832,1734309052339,-500.0,0.00022499,3]
[345517833,1734309052350,-500.0,0.00022499,3]
[345517834,1734309052360,-500.0,0.00022499,3]
[345517835,1734309052371,-500.0,0.00022499,3]
[345517836,1734309052380,-500.0,0.00022499,3]
[345517837,1734309052390,-260.46,0.00022499,3]
[345517838,1734309052401,-500.0,0.00022499,3]
[345517839,1734309052411,-500.0,0.00022499,3]
[345517840,1734309052420,-500.0,0.00022499,3]
[345517841,1734309052429,-500.0,0.00022499,3]
[345517842,1734309052438,-500.0,0.00022499,3]
[345517843,1734309052447,-500.0,0.00022499,3]
[345517844,1734309052457,-500.0,0.00022499,3]
[345517845,1734309052466,-500.0,0.00022499,3]
[345517846,1734309052480,-714.23,0.00022499,3]
[345517847,1734309052489,-500.0,0.00022499,3]
[345517848,1734309052498,-714.23,0.00022499,3]
[345517849,1734309052508,-500.0,0.00022499,3]
[345517850,1734309052517,-714.23,0.00022499,3]
[345517851,1734309052526,-500.0,0.00022499,3]
[345517852,1734309052536,-714.23,0.00022499,3]
[345517853,1734309052546,-500.0,0.00022499,3]
[345517854,1734309052556,-714.23,0.00022499,3]
[345517855,1734309052565,-500.0,0.00022499,3]
[345517856,1734309052573,-714.23,0.00022499,3]
[345517857,1734309052583,-714.23,0.00022499,3]
[345517858,1734309052592,-500.0,0.00022499,3]
[345517859,1734309052603,-714.23,0.00022499,3]
[345517860,1734309052612,-500.0,0.00022499,3]
[345517861,1734309052624,-714.23,0.00022499,3]
[345517862,1734309052634,-500.0,0.00022499,3]
[345517863,1734309052643,-714.23,0.00022499,3]
[345517864,1734309052653,-500.0,0.00022499,3]
[345517865,1734309052662,-714.23,0.00022499,3]
[345517866,1734309052673,-500.0,0.00022499,3]
[345517867,1734309052683,-500.0,0.00022499,3]
[345517868,1734309052694,-714.23,0.00022499,3]
[345517869,1734309052703,-714.23,0.00022499,3]
[345517870,1734309052713,-500.0,0.00022499,3]
[345517871,1734309052726,-714.23,0.00022499,3]
[345517872,1734309052736,-615.62749333,0.00022499,3]
[345517873,1734309052745,-714.23,0.00022499,3]
[345517874,1734309052755,-714.23,0.00022499,3]
[345517875,1734309052766,-714.23,0.00022499,3]
[345517876,1734309052776,-714.23,0.00022499,3]
[345517877,1734309052786,-714.23,0.00022499,3]
[345517878,1734309052795,-714.23,0.00022499,3]
[345517879,1734309052805,-714.23,0.00022499,3]
[345517880,1734309052814,-714.38,0.00022499,3]
[345517881,1734309052823,-500.0,0.00022499,3]
[345517882,1734309052833,-277.94188551,0.00022499,3]
[345517883,1734309052843,-500.0,0.00022499,3]
[345517884,1734309052852,-500.0,0.00022499,3]
[345517885,1734309052862,-500.0,0.00022499,3]
[345517886,1734309052872,-500.0,0.00022499,3]
[345517887,1734309052881,-500.0,0.00022499,3]
[345517888,1734309052891,-414.8,0.00022499,3]
[345517889,1734309052901,-500.0,0.00022499,3]
[345517890,1734309052911,-500.0,0.00022499,3]
[345517891,1734309052921,-558.14,0.00022499,3]
[345517892,1734309052931,-500.0,0.00022499,3]
[345517893,1734309052940,-558.14,0.00022499,3]
[345517894,1734309052949,-537.8116491,0.00022499,3]
[345517895,1734309052960,-558.14,0.00022499,3]
[345517896,1734309052972,-500.0,0.00022499,3]
[345517897,1734309052984,-558.14,0.00022499,3]
[345517898,1734309052994,-425.6182522,0.00022499,3]
[345517899,1734309053004,-500.0,0.00022499,3]
[345517900,1734309053014,-558.14,0.00022499,3]
[345517901,1734309053024,-500.0,0.00022499,3]
[345517902,1734309053034,-558.14,0.00022499,3]
[345517903,1734309053044,-500.0,0.00022499,3]
[345517904,1734309053054,-558.14,0.00022499,3]
[345517905,1734309053063,-558.14,0.00022499,3]
[345517906,1734309053073,-500.0,0.00022499,3]
[345517907,1734309053083,-558.14,0.00022499,3]
[345517908,1734309053093,-520.78,0.00022499,3]
[345517909,1734309053103,-558.14,0.00022499,3]
[345517910,1734309053113,-558.14,0.00022499,3]
[345517911,1734309053124,-558.14,0.00022499,3]
[345517912,1734309053134,-558.14,0.00022499,3]
[345517913,1734309053147,-558.14,0.00022499,3]
[345517914,1734309053157,-558.14,0.00022499,3]
[345517915,1734309053167,-558.14,0.00022499,3]
[345517916,1734309053176,-558.14,0.00022499,3]
[345517917,1734309053186,-558.14,0.00022499,3]
[345517918,1734309053196,-558.14,0.00022499,3]
[345517919,1734309053206,-500.0,0.00022499,3]
[345517920,1734309053216,-558.14,0.00022499,3]
[345517921,1734309053234,-558.14,0.00022499,3]
[345517922,1734309053245,-558.32589582,0.00022499,3]
[345517923,1734309053255,-500.0,0.00022499,3]
[345517924,1734309053265,-198.82,0.00022499,3]
[345517925,1734309053276,-511.56,0.00022499,3]
[345517926,1734309053285,-211.51,0.00022499,3]
[345517927,1734309053296,-500.0,0.00022499,3]
[345517928,1734309053305,-402.63419634,0.00022499,3]
[345517929,1734309053315,-500.0,0.00022499,3]
[345517930,1734309053324,-592.6,0.00022499,3]
[345517931,1734309053334,-1881.93,0.00022499,3]
[345517932,1734309053343,-1881.93,0.00022499,3]
[345517933,1734309053352,-1881.93,0.00022499,3]
[345517934,1734309053362,-1881.93,0.00022499,3]
[345517935,1734309053372,-1881.93,0.00022499,3]
[345517936,1734309053382,-1881.93,0.00022499,3]
[345517937,1734309053392,-1881.93,0.00022499,3]
[345517938,1734309053402,-1881.93,0.00022499,3]
[345517939,1734309053411,-521.22,0.00022499,3]
[345517940,1734309053421,-1881.93,0.00022499,3]
[345517941,1734309053431,-1881.93,0.00022499,3]
[345517942,1734309053440,-1881.93,0.00022499,3]
[345517943,1734309053450,-1881.93,0.00022499,3]
[345517944,1734309053461,-1881.93,0.00022499,3]
[345517945,1734309053475,-1881.93,0.00022499,3]
[345517946,1734309053485,-1881.93,0.00022499,3]
[345517947,1734309053495,-1881.93,0.00022499,3]
[345517948,1734309053505,-1881.93,0.00022499,3]
[345517949,1734309053515,-1881.93,0.00022499,3]
[345517950,1734309053526,-1881.93,0.00022499,3]
[345517951,1734309053535,-1881.93,0.00022499,3]
[345517952,1734309053545,-1881.93,0.00022499,3]
[345517953,1734309053555,-1881.96,0.00022499,3]
[345517954,1734309053566,-585.33,0.00022499,3]
[345517955,1734309053578,-585.33,0.00022499,3]
[345517956,1734309053587,-500.0,0.00022499,3]
[345517957,1734309053597,-585.33,0.00022499,3]
[345517958,1734309053610,-152.41,0.00022499,3]
[345517959,1734309053620,-585.33,0.00022499,3]
[345517960,1734309053629,-585.33,0.00022499,3]
[345517961,1734309053639,-585.33,0.00022499,3]
[345517962,1734309053648,-585.33,0.00022499,3]
[345517963,1734309053659,-500.0,0.00022499,3]
[345517964,1734309053668,-585.33,0.00022499,3]
[345517965,1734309053677,-348.81,0.00022499,3]
[345517966,1734309053686,-585.33,0.00022499,3]
[345517967,1734309053696,-585.33,0.00022499,3]
[345517968,1734309053706,-500.0,0.00022499,3]
[345517969,1734309053716,-585.33,0.00022499,3]
[345517970,1734309053730,-585.33,0.00022499,3]
[345517971,1734309053740,-585.33,0.00022499,3]
[345517972,1734309053750,-500.0,0.00022499,3]
[345517973,1734309053760,-585.33,0.00022499,3]
[345517974,1734309053771,-585.33,0.00022499,3]
[345517975,1734309053780,-585.33,0.00022499,3]
[345517976,1734309053790,-585.33,0.00022499,3]
[345517977,1734309053799,-585.33,0.00022499,3]
[345517978,1734309053809,-500.0,0.00022499,3]
[345517979,1734309053819,-500.0,0.00022499,3]
[345517980,1734309053828,-500.0,0.00022499,3]
[345517981,1734309053838,-500.0,0.00022499,3]
[345517982,1734309053847,-500.0,0.00022499,3]
[345517983,1734309053856,-500.0,0.00022499,3]
[345517984,1734309053866,-500.0,0.00022499,3]
[345517985,1734309053875,-500.0,0.00022499,3]
[345517986,1734309053884,-500.0,0.00022499,3]
[345517987,1734309053894,-500.0,0.00022499,3]
[345517988,1734309053904,-500.0,0.00022499,3]
[345517989,1734309054047,-500.0,0.00022499,3]
[345517990,1734309054057,-500.0,0.00022499,3]
[345517991,1734309054067,-500.0,0.00022499,3]
[345517992,1734309054078,-459.17817609,0.00022499,3]
[345517993,1734309054088,-585.33,0.00022499,3]
[345517994,1734309054098,-585.33,0.00022499,3]
[345517995,1734309054108,-500.0,0.00022499,3]
[345517996,1734309054118,-585.33,0.00022499,3]
[345517997,1734309054127,-585.33,0.00022499,3]
[345517998,1734309054137,-585.33,0.00022499,3]
[345517999,1734309054148,-585.5573498,0.00022499,3]
[345518000,1734309054158,-500.0,0.00022499,3]
[345518001,1734309054168,-500.0,0.00022499,3]
[345518002,1734309054178,-500.0,0.00022499,3]
[345518003,1734309054188,-512.36416075,0.00022499,3]
[345518004,1734309054198,-500.0,0.00022499,3]
[345518005,1734309054208,-500.0,0.00022499,3]
[345518006,1734309054220,-500.0,0.00022499,3]
[345518007,1734309054237,-500.0,0.00022499,3]
[345518008,1734309054248,-500.0,0.00022499,3]
[345518009,1734309054258,-500.0,0.00022499,3]
[345518010,1734309054268,-500.0,0.00022499,3]
[345518011,1734309054278,-500.0,0.00022499,3]
[345518012,1734309054288,-402.75,0.00022499,3]
[345518013,1734309054298,-964.44,0.00022499,3]
[345518014,1734309054308,-964.44,0.00022499,3]
[345518015,1734309054318,-964.44,0.00022499,3]
[345518016,1734309054328,-500.0,0.00022499,3]
[345518017,1734309054339,-964.44,0.00022499,3]
[345518018,1734309054349,-964.44,0.00022499,3]
[345518019,1734309054359,-964.44,0.00022499,3]
[345518020,1734309054368,-964.44,0.00022499,3]
[345518021,1734309054378,-964.44,0.00022499,3]
[345518022,1734309054388,-964.44,0.00022499,3]
[345518023,1734309054398,-964.44,0.00022499,3]
[345518024,1734309054408,-964.44,0.00022499,3]
[345518025,1734309054417,-964.44,0.00022499,3]
[345518026,1734309054429,-964.44,0.00022499,3]
[345518027,1734309054439,-964.44,0.00022499,3]
[345518028,1734309054448,-964.44,0.00022499,3]
[345518029,1734309054458,-964.44,0.00022499,3]
[345518030,1734309054468,-964.44,0.00022499,3]
[345518031,1734309054483,-964.44,0.00022499,3]
[345518032,1734309054492,-15000.0,0.00022499,20]
[345518033,1734309054503,-267820.35789555,0.000225,4]
[345518034,1734309054513,-1757.62378786,0.000225,2]
[345518035,1734309054523,-8865.31699063,0.000225,2]
[345518036,1734309054533,-578653.95845824,0.000225,2]
[345518037,1734309054699,-4836.0,0.000225,2]
[345518038,1734309054712,-1845.66805756,0.000225,2]
[345518039,1734309054727,-15734.03600001,0.000225,2]
[345518040,1734309054739,-903.28837569,0.000225,2]
[345518041,1734309054751,-951.77514956,0.000225,2]
[345518042,1734309054762,-4372.0,0.000225,2]
[345518043,1734309054774,-18171.29795,0.000225,2]
[345518044,1734309054787,-1206.44335001,0.000225,2]
[345518045,1734309054798,-1273.949995,0.000225,2]
[345518046,1734309054925,-964.44,0.00022499,3]
[345518047,1734309054935,-964.44,0.00022499,3]
[345518048,1734309054945,-964.44,0.00022499,3]
[345518049,1734309054955,-964.44,0.00022499,3]
[345518050,1734309054964,-964.54,0.00022499,3]
[345518051,1734309054979,-1045790.7600171,0.000225,2]
[345518052,1734309054990,-397335.13802404,0.000225,2]
[345518053,1734309055002,-1022.6644861,0.000225,2]
[345518054,1734309055014,-10494.93591286,0.000225,2]
[345518055,1734309055029,-4532.3834457,0.000225,2]
[345518056,1734309055041,-10091.2408907,0.000225,2]
[345518057,1734309055056,-1706.02813251,0.000225,2]
[345518058,1734309055071,-1821.16173639,0.000225,2]
[345518059,1734309055082,-403150.0,0.000225,2]
[345518060,1734309055094,-17831.67858389,0.000225,2]
[345518061,1734309055110,-4806.6296134,0.000225,2]
[345518062,1734309055121,-2328.65129334,0.000225,2]
[345518063,1734309055133,-4724.6680445,0.000225,2]
[345518064,1734309055145,-14129.93520404,0.000225,2]
[345518065,1734309055156,-4841.79727168,0.000225,2]
[345518066,1734309055167,-23915.47915168,0.000225,2]
[345518067,1734309055179,-60965.290275,0.000225,2]
[345518068,1734309802416,500.0,0.00019,30]
[345518069,1734309813328,656.97446975,0.00021,120]
[345518070,1734309816783,450.0,0.00013,2]
[345518071,1734309836039,151.91,0.00010137,2]
[345518073,1734310148209,-902.9741602,0.00018,3]
[345518074,1734310148230,-600.0,0.0001843,2]
[345518075,1734310148250,-2053.0,0.0001843,2]
[345518076,1734310148272,-646.07,0.00018915,2]
[345518077,1734310148293,-10000.0,0.000195,2]
[345518078,1734310148316,-54278.86701501,0.00019742,2]
[345518079,1734310148352,-25328.84368717,0.00019742,2]
[345518080,1734310149152,-28950.02332784,0.00019742,2]
[345518081,1734310149175,-1332.16144142,0.00019742,2]
[345518082,1734310149409,-4238.21927334,0.00019744,2]
[345518083,1734310149434,-9946.9930574,0.00019744,2]
[345518084,1734310156103,-3949.20302,0.00019744,2]
[345518085,1734310156169,-40382.67093761,0.00019744,2]
[345518086,1734310156194,-1352.19423677,0.00019746,2]
[345518087,1734310156216,-16374.02517334,0.00019748,2]
[345518088,1734310156236,-200.0,0.00019753,2]
[345518089,1734310156257,-16374.02517334,0.00019754,2]
[345518090,1734310156277,-5213.93311616,0.00019758,2]
[345518091,1734310164107,-11160.09205718,0.00019758,2]
[345518092,1734310164131,-1332.16144142,0.00019758,2]
[345518093,1734310164160,-16374.02517334,0.00019759,2]
[345518094,1734310164185,-4238.21927334,0.00019762,2]
[345518095,1734310164211,-21852.13217472,0.00019763,2]
[345518096,1734310172158,-7546.28714,0.00019763,2]
[345518102,1734310231634,-24880.44770029,0.00019763,2]
[345518103,1734310231644,-16374.02517334,0.00019763,2]
[345518104,1734310231653,-200.0,0.00019765,2]
[345518105,1734310231663,-1352.19423677,0.00019767,2]
[345518106,1734310231673,-1352.19423677,0.00019767,2]
[345518107,1734310231682,-4238.21927334,0.00019768,2]
[345518108,1734310231692,-1332.16144142,0.0001977,2]
[345518109,1734310231702,-1352.19423677,0.00019771,2]
[345518110,1734310231711,-200.0,0.00019773,2]
[345518111,1734310231720,-1332.16144142,0.00019773,2]
[345518112,1734310231729,-4238.21927334,0.00019774,2]
[345518113,1734310231738,-200.0,0.00019779,2]
[345518114,1734310231748,-1332.16144142,0.00019781,2]
[345518115,1734310231757,-1352.19423677,0.00019783,2]
[345518116,1734310231767,-54278.86701501,0.00019789,2]
[345518117,1734310231776,-4238.21927334,0.0001979,2]
[345518118,1734310231787,-4238.21927334,0.0001979,2]
[345518119,1734310231797,-54278.86701501,0.00019791,2]
[345518120,1734310231806,-200.0,0.00019794,2]
[345518121,1734310231817,-1352.19423677,0.00019795,2]
[345518122,1734310231827,-16374.02517334,0.00019796,2]
[345518123,1734310231837,-1332.16144142,0.00019799,2]
[345518124,1734310231846,-688.65,0.0002,2]
[345518125,1734310231855,-997.14,0.0002007,2]
[345518126,1734310231865,-980.27,0.00020119,2]
[345518127,1734310231874,-993.23,0.00020202,2]
[345518128,1734310231883,-1016.7,0.00020338,2]
[345518129,1734310231892,-1127.64,0.00020413,2]
[345518130,1734310231902,-987.45,0.00020445,2]
[345518131,1734310231911,-300.0,0.00020499,2]
[345518132,1734310231920,-10000.0,0.000205,2]
[345518133,1734310231929,-250.0,0.00020507,2]
[345518134,1734310231939,-162.64,0.00020597,2]
[345518135,1734310231948,-150.0,0.00020622,2]
[345518136,1734310231957,-1000.0,0.00020622,2]
[345518137,1734310231966,-30732.93,0.00020623,2]
[345518138,1734310231976,-250.0,0.00020657,2]
[345518139,1734310231985,-390.28,0.0002075,2]
[345518140,1734310231996,-374.47,0.00020872,2]
[345518141,1734310232006,-1000.0,0.00020909,2]
[345518142,1734310232017,-158.26,0.00021013,30]
[345518143,1734310232027,-646.07,0.00021179,2]
[345518144,1734310232037,-5538.71,0.00021255,2]
[345518145,1734310232047,-153.86425465,0.0002126,2]
[345518146,1734310232061,-573.342,0.0002137,2]
[345518147,1734310232074,-153.86425465,0.00021397,2]
[345518148,1734310232084,-8385.1,0.00021425,2]
[345518149,1734310232094,-985.65,0.000215,2]
[345518150,1734310232108,-390.28,0.00021518,2]
[345518151,1734310232117,-1320.35,0.00021534,2]
[345518152,1734310232127,-746.61,0.00021534,2]
[345518153,1734310232138,-153.86425465,0.00021562,2]
[345518154,1734310232147,-2006.0,0.000216,2]
[345518155,1734310232157,-150.0,0.000216,2]
[345518156,1734310232166,-632.0,0.000216,2]
[345518157,1734310232176,-697.534,0.000216,2]
[345518158,1734310232188,-150.0,0.000216,2]
[345518159,1734310232198,-390.155,0.000216,2]
[345518160,1734310232208,-1099.0,0.000216,2]
[345518161,1734310232217,-839.0,0.00021603,2]
[345518162,1734310232227,-435.71,0.00021671,2]
[345518163,1734310232237,-231.7,0.00021671,2]
[345518164,1734310232246,-435.71,0.00021671,2]
[345518165,1734310232257,-435.71,0.00021671,2]
[345518166,1734310232267,-435.11,0.00021671,2]
[345518167,1734310232277,-153.86425465,0.00021699,2]
[345518168,1734310232287,-153.86425465,0.00021836,2]
[345518169,1734310232297,-500.0,0.00021917,3]
[345518170,1734310232306,-500.0,0.00021917,3]
[345518171,1734310232316,-160.94898204,0.00021917,3]
[345518172,1734310232327,-319.66592705,0.00021917,3]
[345518173,1734310232337,-500.0,0.00021917,3]
[345518175,1734310232347,-500.0,0.00021917,3]
[345518177,1734310232357,-500.0,0.00021917,3]
[345518179,1734310232367,-391.35,0.00021917,3]
[345518181,1734310232377,-500.0,0.00021917,3]
[345518183,1734310232386,-500.0,0.00021917,3]
[345518185,1734310232395,-500.0,0.00021917,3]
[345518187,1734310232405,-500.0,0.00021917,3]
[345518189,1734310232414,-500.0,0.00021917,3]
[345518191,1734310232424,-500.0,0.00021917,3]
[345518193,1734310232433,-500.0,0.00021917,3]
[345518195,1734310232449,-500.0,0.00021917,3]
[345518197,1734310232459,-500.0,0.00021917,3]
[345518199,1734310232469,-505.35,0.00021917,3]
[345518201,1734310232478,-500.0,0.00021917,3]
[345518203,1734310232488,-500.0,0.00021917,3]
[345518204,1734310232499,-500.0,0.00021917,3]
[345518205,1734310232508,-209.81166527,0.00021917,3]
[345518206,1734310232518,-500.0,0.00021917,3]
[345518208,1734310232527,-500.0,0.00021917,3]
[345518210,1734310232537,-500.0,0.00021917,3]
[345518212,1734310232546,-500.0,0.00021917,3]
[345518214,1734310232556,-500.0,0.00021917,3]
[345518216,1734310232565,-500.0,0.00021917,3]
[345518218,1734310232575,-500.0,0.00021917,3]
[345518219,1734310232584,-500.0,0.00021917,3]
[345518220,1734310232594,-500.0,0.00021917,3]
[345518221,1734310232604,-500.46,0.00021917,3]
[345518222,1734310232614,-500.0,0.00021917,3]
[345518223,1734310232623,-500.0,0.00021917,3]
[345518224,1734310232633,-500.0,0.00021917,3]
[345518225,1734310232643,-500.0,0.00021917,3]
[345518226,1734310232652,-500.0,0.00021917,3]
[345518227,1734310232661,-500.0,0.00021917,3]
[345518228,1734310232670,-500.0,0.00021917,3]
[345518229,1734310232680,-500.0,0.00021917,3]
[345518230,1734310232693,-500.0,0.00021917,3]
[345518231,1734310232703,-500.0,0.00021917,3]
[345518232,1734310232712,-500.0,0.00021917,3]
[345518233,1734310232721,-500.0,0.00021917,3]
[345518234,1734310232731,-500.0,0.00021917,3]
[345518235,1734310232740,-251.19923553,0.00021917,3]
[345518236,1734310232749,-500.0,0.00021917,3]
[345518237,1734310232758,-500.0,0.00021917,3]
[345518238,1734310232768,-153.86425465,0.00021973,2]
[345518239,1734310232777,-784.41077435,0.0002199,2]
[345518240,1734310232786,-167.09,0.00021991,2]
[345518241,1734310232799,-500.0,0.00021999,2]
[345518242,1734310232808,-500.0,0.00021999,2]
[345518243,1734310232817,-321.68524715,0.00021999,2]
[345518244,1734310232825,-500.0,0.00021999,2]
[345518245,1734310232834,-500.0,0.00021999,2]
[345518246,1734310232843,-500.0,0.00021999,2]
[345518247,1734310232852,-500.0,0.00021999,2]
[345518248,1734310233042,-453.13548278,0.00021999,2]
[345518249,1734310233053,-500.0,0.00021999,2]
[345518250,1734310233066,-500.0,0.00021999,2]
[345518251,1734310233077,-500.0,0.00021999,3]
[345518252,1734310233087,-500.0,0.00021999,3]
[345518253,1734310233097,-500.0,0.00021999,3]
[345518254,1734310233107,-500.0,0.00021999,3]
[345518255,1734310233117,-500.0,0.00021999,3]
[345518256,1734310233127,-585.98411405,0.00021999,3]
[345518257,1734310233136,-500.0,0.00021999,3]
[345518258,1734310233146,-109640.82391355,0.00022,2]
[345518259,1734310233155,-2110.0,0.00022,2]
[345518260,1734310233165,-24663.08036915,0.00022,2]
[345518261,1734310233318,-22629.81881506,0.00022,2]
[345518262,1734310233330,-3047.87549587,0.00022,2]
[345518263,1734310233341,-1432.64392998,0.00022,2]
[345518264,1734310233357,-640.44769825,0.00022,2]
[345518265,1734310233378,-1069.00829095,0.00022,2]
[345518266,1734310233391,-184358.69309122,0.00022,2]
[345518267,1734310233403,-35979.83036147,0.00022,2]
[345518268,1734310233415,-1698.222712,0.00022,2]
[345518269,1734310233427,-18299.6881042,0.00022,2]
[345518270,1734310233445,-23699.05774185,0.00022,2]
[345518271,1734310233462,-86923.79649,0.00022,2]
[345518272,1734310233472,-178.2770547,0.0002205,2]
[345518273,1734310233482,-153.86425465,0.0002211,2]
[345518274,1734310233492,-279.71796236,0.00022146,2]
[345518275,1734310233502,-279.71796229,0.00022174,2]